bitfinex-derivatives/quotes_SOLF0:USTF0_20260302
["timestamp","ask_amount","ask_price","bid_price","bid_amount"]
[1772433034271,9.39807671,83.37,83.3,9.39807671]
[1772433034272,22.763145,83.375,83.311,21.27512593]
[1772433035171,22.763145,83.369,83.311,21.27512593]
[1772433037276,9.39807671,83.4,83.291,21.27512593]
[1772433037277,32.16122171,83.36,83.291,21.27512593]
[1772433037481,32.16122171,83.36,83.203,29.80309177]
[1772433037482,9.39807671,83.33,83.273,21.27512593]
[1772433037680,9.39807671,83.32,83.273,21.27512593]
[1772433039580,9.39807671,83.3,83.241,10.8126]
[1772433040178,9.39807671,83.3,83.243,10.8123]
[1772433040495,32.16122171,83.33,83.261,21.27512593]
[1772433040785,9.39807671,83.32,83.261,21.27512593]
[1772433042580,10.8019,83.324,83.246,10.812]
[1772433042581,9.39807671,83.31,83.247,21.27512593]
[1772433043682,22.763145,83.319,83.251,21.27512593]
[1772433044772,22.763145,83.319,83.25,9.39807671]
[1772433044773,22.763145,83.319,83.26,21.27512593]
[1772433044976,9.39807671,83.33,83.26,21.27512593]
[1772433045385,9.39807671,83.33,83.267,32.08432593]
[1772433045677,22.763145,83.319,83.267,21.27512593]
[1772433045987,22.763145,83.319,83.269,10.809]
[1772433046381,9.39807671,83.32,83.276,10.8081]
[1772433046578,22.763145,83.338,83.276,10.8081]
[1772433046579,9.41057201,83.33,83.276,10.8081]
[1772433046781,9.41057201,83.33,83.276,32.08322593]
[1772433048280,22.763145,83.338,83.24,9.41057201]
[1772433048281,22.763145,83.338,83.282,10.8073]
[1772433048484,22.23204434,83.357,83.291,21.33653667]
[1772433048680,22.23204434,83.357,83.301,21.33653667]
[1772433048882,9.41057201,83.37,83.301,21.33653667]
[1772433049078,22.23204434,83.375,83.321,21.33653667]
[1772433049291,9.41057201,83.39,83.321,21.33653667]
[1772433049682,22.23204434,83.399,83.321,21.33653667]
[1772433049882,22.23204434,83.397,83.333,10.8007]
[1772433050484,22.23204434,83.397,83.333,21.33653667]
[1772433050889,9.41057201,83.43,83.35,9.41057201]
[1772433051187,22.23204434,83.437,83.371,21.33653667]
[1772433051379,9.41057201,83.43,83.371,21.33653667]
[1772433051576,9.41057201,83.43,83.383,10.7943]
[1772433051774,9.41057201,83.43,83.371,21.33653667]
[1772433051775,7.201e-05,83.43,83.371,21.33653667]
[1772433051984,31.64261635,83.51,83.422,21.33653667]
[1772433052183,9.41057201,83.5,83.43,9.41057201]
[1772433052383,9.41057201,83.5,83.431,21.33653667]
[1772433053389,9.41057201,83.5,83.433,21.33653667]
[1772433054785,22.23204434,83.508,83.435,21.33653667]
[1772433054987,22.23204434,83.508,83.441,21.33653667]
[1772433055189,9.41057201,83.49,83.441,21.33653667]
[1772433055990,9.41057201,83.5,83.441,21.33653667]
[1772433056784,22.23204434,83.499,83.422,21.33653667]
[1772433056990,9.41057201,83.49,83.422,21.33653667]
[1772433057886,9.41057201,83.49,83.426,10.7887]
[1772433058490,9.41057201,83.49,83.426,32.12523667]
[1772433058684,9.41057201,83.49,83.379,167.9182]
[1772433058685,9.41057201,83.48,83.414,21.33653667]
[1772433059184,22.23204434,83.489,83.414,21.33653667]
[1772433059384,22.23204434,83.489,83.424,21.33653667]
[1772433059590,9.41057201,83.5,83.43,9.41057201]
[1772433059788,9.41057201,83.5,83.431,21.33653667]
[1772433060783,9.41057201,83.5,83.438,10.7871]
[1772433060990,22.23204434,83.509,83.451,21.33653667]
[1772433061888,22.23204434,83.509,83.453,21.33653667]
[1772433063485,22.23204434,83.509,83.454,32.12153667]
[1772433063690,22.23204434,83.509,83.455,21.33653667]
[1772433064795,22.23204434,83.509,83.44,9.41057201]
[1772433064796,22.23204434,83.548,83.481,21.33653667]
[1772433065588,22.23204434,83.568,83.491,21.33653667]
[1772433066097,9.41057201,83.56,83.491,21.33653667]
[1772433066290,22.23204434,83.559,83.491,21.33653667]
[1772433066489,22.23204434,83.549,83.473,21.33653667]
[1772433066690,31.64261635,83.54,83.473,21.33653667]
[1772433066995,31.64261635,83.54,83.484,10.7811]
[1772433067892,22.23204434,83.54,83.484,10.7811]
[1772433068092,22.23204434,83.529,83.455,21.33653667]
[1772433068296,9.41057201,83.51,83.455,21.33653667]
[1772433068791,22.23204434,83.509,83.455,21.33653667]
[1772433070294,22.23204434,83.509,83.446,10.7861]
[1772433070494,22.23204434,83.509,83.446,32.12263667]
[1772433070696,22.23204434,83.509,83.452,10.7852]
[1772433071194,22.23204434,83.509,83.342,14.58196757]
[1772433071195,22.23204434,83.584,83.529,21.33653667]
[1772433071401,22.23204434,83.579,83.51,9.41057201]
[1772433072395,22.23204434,83.578,83.51,9.41057201]
[1772433072596,22.23204434,83.578,83.505,21.33653667]
[1772433073001,22.23204434,83.578,83.52,9.41057201]
[1772433073396,22.23204434,83.578,83.52,30.74710868]
[1772433074699,23.16092344,83.588,83.522,22.37676734]
[1772433074901,23.16092344,83.579,83.51,9.41057201]
[1772433075202,23.16092344,83.579,83.503,22.37676734]
[1772433075901,23.16092344,83.575,83.504,22.37676734]
[1772433076097,23.16092344,83.575,83.51,9.41057201]
[1772433076497,10.77,83.572,83.51,9.41057201]
[1772433076697,9.41057201,83.56,83.482,22.37676734]
[1772433076897,9.41057201,83.56,83.44,9.41057201]
[1772433076898,23.16092344,83.559,83.49,31.78733935]
[1772433077203,23.16092344,83.559,83.424,21.5778]
[1772433077204,9.41057201,83.59,83.511,21.79620988]
[1772433077402,22.06516959,83.589,83.511,21.79620988]
[1772433078804,22.06516959,83.586,83.512,10.7775]
[1772433079200,22.06516959,83.582,83.512,32.57370988]
[1772433079504,22.06516959,83.582,83.522,10.7762]
[1772433082102,22.06516959,83.582,83.467,167.7419]
[1772433082103,22.06516959,83.569,83.49,9.41057201]
[1772433082302,22.06516959,83.569,83.487,21.79620988]
[1772433082303,22.06516959,83.559,83.487,21.79620988]
[1772433082700,31.4757416,83.55,83.487,21.79620988]
[1772433083905,31.4757416,83.55,83.489,10.7804]
[1772433084106,31.4757416,83.55,83.49,21.79620988]
[1772433084309,22.06516959,83.55,83.49,21.79620988]
[1772433085603,22.06516959,83.55,83.49,31.20678189]
[1772433085804,22.06516959,83.55,83.495,10.7797]
[1772433089212,31.4757416,83.55,83.495,10.7797]
[1772433089610,22.06516959,83.55,83.495,10.7797]
[1772433090910,22.06516959,83.55,83.49,31.20678189]
[1772433090911,22.06516959,83.567,83.506,21.79620988]
[1772433091209,9.41057201,83.56,83.506,21.79620988]
[1772433092518,31.4757416,83.54,83.489,21.79620988]
[1772433093920,9.41057201,83.55,83.491,21.79620988]
[1772433094518,22.06516959,83.558,83.491,21.79620988]
[1772433094519,22.06516959,83.557,83.506,10.7783]
[1772433094718,9.41057201,83.55,83.506,10.7783]
[1772433096513,9.41057201,83.54,83.496,10.7796]
[1772433096818,22.06516959,83.539,83.496,10.7796]
[1772433097417,140.06516959,83.539,83.496,10.7796]
[1772433097921,140.06516959,83.539,83.491,21.79620988]
[1772433098315,140.06516959,83.539,83.493,10.78]
[1772433099119,9.41057201,83.53,83.493,10.78]
[1772433100513,22.06516959,83.538,83.493,10.78]
[1772433100718,22.06516959,83.538,83.488,21.79620988]
[1772433102021,10.7744,83.537,83.488,21.79620988]
[1772433102420,22.06516959,83.538,83.488,21.79620988]
[1772433103424,22.06516959,83.538,83.489,10.7805]
[1772433103624,22.06516959,83.538,83.49,21.79620988]
[1772433104824,22.06516959,83.538,83.491,10.7802]
[1772433108418,22.06516959,83.538,83.45,21.571]
[1772433108419,14.46243306,83.588,83.474,22.50493198]
[1772433108624,9.3534215,83.58,83.511,22.50493198]
[1772433108824,9.3534215,83.57,83.521,22.50493198]
[1772433109019,32.46417838,83.56,83.505,22.50493198]
[1772433109626,23.11075688,83.56,83.505,22.50493198]
[1772433110627,23.11075688,83.577,83.516,22.50493198]
[1772433110820,23.11075688,83.569,83.516,22.50493198]
[1772433111025,9.3534215,83.56,83.516,22.50493198]
[1772433111529,9.3534215,83.55,83.501,22.50493198]
[1772433111723,9.3534215,83.54,83.485,22.50493198]
[1772433111923,9.3534215,83.54,83.493,10.78]
[1772433115030,9.3534215,83.54,83.485,22.50493198]
[1772433119233,9.3534215,83.54,83.486,22.50493198]
[1772433119425,9.3534215,83.54,83.487,22.50493198]
[1772433119624,23.11075688,83.549,83.491,22.50493198]
[1772433121036,23.11075688,83.549,83.495,22.50493198]
[1772433121738,23.11075688,83.548,83.495,22.50493198]
[1772433122037,32.46417838,83.54,83.495,22.50493198]
[1772433122335,32.46417838,83.54,83.462,22.35231882]
[1772433122336,23.11075688,83.506,83.458,22.50493198]
[1772433122535,32.46417838,83.5,83.442,22.50493198]
[1772433123836,32.46417838,83.5,83.444,22.50493198]
[1772433124237,9.3534215,83.49,83.428,22.50493198]
[1772433124433,23.11075688,83.519,83.444,22.50493198]
[1772433125336,9.3534215,83.5,83.444,22.50493198]
[1772433125541,23.11075688,83.499,83.444,22.50493198]
[1772433125936,9.3534215,83.51,83.447,22.50493198]
[1772433126132,32.46417838,83.51,83.447,22.50493198]
[1772433126340,23.11075688,83.507,83.451,10.7854]
[1772433126932,23.11075688,83.507,83.447,22.50493198]
[1772433127133,9.3534215,83.6,83.501,22.50493198]
[1772433127443,10.7664,83.599,83.532,22.50493198]
[1772433127638,9.3534215,83.6,83.532,22.50493198]
[1772433128642,9.3534215,83.6,83.484,167.7076]
[1772433128643,9.3534215,83.59,83.513,22.50493198]
[1772433128835,9.3534215,83.58,83.513,22.50493198]
[1772433129037,17.62432331,83.607,83.556,22.50493198]
[1772433129236,17.62432331,83.607,83.54,9.3534215]
[1772433129440,17.62432331,83.599,83.535,22.50493198]
[1772433129740,9.3534215,83.59,83.535,22.50493198]
[1772433130541,20.1210215,83.59,83.535,22.50493198]
[1772433132543,9.3534215,83.59,83.535,22.50493198]
[1772433132744,17.62432331,83.599,83.535,22.50493198]
[1772433133041,9.3534215,83.59,83.535,22.50493198]
[1772433133243,16.91388335,83.589,83.535,22.50493198]
[1772433133437,16.91388335,83.579,83.517,21.29348019]
[1772433134138,16.82616719,83.567,83.517,21.29348019]
[1772433136046,10.7709,83.565,83.517,21.29348019]
[1772433136246,16.82616719,83.567,83.517,21.29348019]
[1772433137142,27.59666719,83.567,83.517,21.29348019]
[1772433142246,17.00307254,83.586,83.531,23.03064936]
[1772433142447,17.00307254,83.586,83.52,9.3534215]
[1772433142654,17.02295004,83.569,83.501,23.03064936]
[1772433143243,9.3534215,83.55,83.481,23.03064936]
[1772433143447,17.02295004,83.549,83.481,23.03064936]
[1772433143644,17.02295004,83.549,83.483,23.03064936]
[1772433143843,17.6270037,83.539,83.483,23.03064936]
[1772433144750,10.7757,83.527,83.483,23.03064936]
[1772433144948,17.64703432,83.529,83.468,23.03064936]
[1772433145450,9.3534215,83.52,83.468,23.03064936]
[1772433146047,17.64703432,83.529,83.468,23.03064936]
[1772433146845,9.3534215,83.56,83.471,23.03064936]
[1772433146846,10.7742,83.539,83.471,23.03064936]
[1772433147641,28.44698195,83.539,83.471,23.03064936]
[1772433147847,28.44698195,83.539,83.48,23.03064936]
[1772433149751,10.7754,83.529,83.48,23.03064936]
[1772433150149,9.3534215,83.52,83.48,23.03064936]
[1772433151553,10.776,83.525,83.48,23.03064936]
[1772433153251,9.3534215,83.52,83.465,23.03064936]
[1772433154454,10.7767,83.519,83.465,23.03064936]
[1772433154657,10.7767,83.519,83.429,22.35231882]
[1772433154658,17.77759,83.499,83.449,23.03064936]
[1772433154958,9.3534215,83.49,83.449,23.03064936]
[1772433155455,17.77759,83.499,83.449,23.03064936]
[1772433155856,10.7805,83.49,83.449,23.03064936]
[1772433156458,20.1339215,83.49,83.449,23.03064936]
[1772433157648,10.7815,83.482,83.449,23.03064936]
[1772433157854,10.7815,83.482,83.423,23.03064936]
[1772433158457,9.3534215,83.46,83.405,23.03064936]
[1772433159957,10.7847,83.458,83.405,23.03064936]
[1772433162253,20.97175199,83.487,83.41,9.3534215]
[1772433162452,20.97175199,83.487,83.37,251.5291]
[1772433162453,18.88575246,83.487,83.431,23.03064936]
[1772433163356,10.7829,83.471,83.431,23.03064936]
[1772433163757,10.7829,83.471,83.402,23.03064936]
[1772433163953,118.0,83.47,83.411,23.03064936]
[1772433165064,118.0,83.47,83.421,23.03064936]
[1772433165264,118.0,83.479,83.421,23.03064936]
[1772433165960,118.0,83.479,83.424,23.03064936]
[1772433166562,118.0,83.479,83.431,23.03064936]
[1772433167863,118.0,83.479,83.436,22.62156462]
[1772433168165,18.88075365,83.508,83.451,22.62156462]
[1772433169368,18.88575754,83.506,83.451,22.62156462]
[1772433170862,18.75601835,83.504,83.451,22.62156462]
[1772433171161,9.37134123,83.5,83.451,22.62156462]
[1772433171763,10.7797,83.497,83.451,22.62156462]
[1772433172561,3.93608235,83.49,83.451,22.62156462]
[1772433173270,10.7797,83.497,83.451,22.62156462]
[1772433173863,22.7064443,83.49,83.45,3.93608235]
[1772433174061,98.9632,83.489,83.44,3.93608235]
[1772433174266,98.9632,83.489,83.441,22.62156462]
[1772433174863,3.93608235,83.48,83.441,22.62156462]
[1772433175263,10.7807,83.488,83.426,22.62156462]
[1772433175467,3.93608235,83.48,83.43,3.93608235]
[1772433175867,3.93608235,83.48,83.43,26.55764697]
[1772433176566,98.9632,83.487,83.401,22.62156462]
[1772433176567,3.93608235,83.44,83.401,22.62156462]
[1772433176768,3.93608235,83.43,83.385,22.62156462]
[1772433177666,3.93608235,83.44,83.4,26.55764697]
[1772433177868,22.62393188,83.45,83.4,26.55764697]
[1772433178070,3.93608235,83.45,83.4,26.55764697]
[1772433178465,18.62659556,83.466,83.4,22.62156462]
[1772433178966,10.7849,83.456,83.402,22.62156462]
[1772433179367,18.63112854,83.455,83.402,22.62156462]
[1772433180469,18.73869847,83.469,83.402,22.62156462]
[1772433180869,10.7841,83.462,83.404,22.62156462]
[1772433181770,18.81906009,83.459,83.405,10.7914]
[1772433182371,10.7841,83.462,83.406,22.62156462]
[1772433183471,9.38125728,83.49,83.418,22.62156462]
[1772433183771,98.9632,83.489,83.421,22.62156462]
[1772433183965,18.82337872,83.491,83.431,22.62156462]
[1772433184167,29.60377872,83.491,83.439,33.40856462]
[1772433185574,18.76429329,83.508,83.45,22.62156462]
[1772433185875,9.38125728,83.5,83.45,22.62156462]
[1772433186880,10.7794,83.498,83.45,22.62156462]
[1772433187177,9.38125728,83.5,83.45,22.62156462]
[1772433187577,18.76429329,83.508,83.452,22.62156462]
[1772433188078,10.7784,83.506,83.452,22.62156462]
[1772433188779,10.7784,83.506,83.455,22.62156462]
[1772433188982,29.67836638,83.506,83.455,22.62156462]
[1772433190177,18.95342455,83.514,83.459,22.62156462]
[1772433191583,27.90967254,83.49,83.443,22.62156462]
[1772433193384,9.38125728,83.48,83.443,22.62156462]
[1772433193686,18.5319493,83.488,83.443,22.62156462]
[1772433194782,10.7809,83.487,83.443,22.62156462]
[1772433195884,98.9632,83.486,83.443,22.62156462]
[1772433197879,10.7814,83.483,83.443,22.62156462]
[1772433198583,3.93708108,83.48,83.443,22.62156462]
[1772433198780,3.93708108,83.5,83.451,21.7461884]
[1772433199487,3.93708108,83.49,83.451,21.7461884]
[1772433200582,24.87956056,83.509,83.451,21.7461884]
[1772433200786,10.7787,83.504,83.451,21.7461884]
[1772433201479,10.7792,83.5,83.451,21.7461884]
[1772433202289,20.15041127,83.5,83.451,21.7461884]
[1772433202686,20.15041127,83.5,83.452,10.7853]
[1772433202687,9.37121127,83.5,83.452,10.7853]
[1772433207195,25.35630074,83.499,83.443,10.7864]
[1772433207398,25.35630074,83.499,83.43,14.81998832]
[1772433207596,25.35630074,83.499,83.433,14.81998832]
[1772433207998,25.38370314,83.489,83.42,14.81998832]
[1772433208398,25.38370314,83.489,83.42,24.19119959]
[1772433208790,9.37121127,83.49,83.433,10.7878]
[1772433208791,36.16786432,83.487,83.433,10.7878]
[1772433210101,25.4100683,83.486,83.433,10.7878]
[1772433211392,25.41317793,83.479,83.425,10.7888]
[1772433212895,25.34917905,83.477,83.425,10.7888]
[1772433216206,25.34917905,83.477,83.432,10.7878]
[1772433218404,9.37121127,83.48,83.432,10.7878]
[1772433219007,25.41465092,83.479,83.432,10.7878]
[1772433220101,25.42042685,83.476,83.422,10.7892]
[1772433220310,25.42042685,83.469,83.417,14.81998832]
[1772433220607,3.93884603,83.46,83.42,3.93884603]
[1772433221807,3.93884603,83.46,83.422,10.7891]
[1772433223306,3.93884603,83.46,83.431,10.788]
[1772433223706,25.42042685,83.469,83.431,10.788]
[1772433224109,3.93884603,83.47,83.431,10.788]
[1772433230016,3.93884603,83.46,83.422,10.7891]
[1772433230218,3.93884603,83.45,83.422,10.7891]
[1772433232210,29.35066639,83.46,83.422,10.7891]
[1772433232617,29.35044391,83.46,83.422,10.7891]
[1772433232815,3.93862355,83.46,83.422,10.7891]
[1772433242126,3.93862355,83.46,83.429,10.7882]
[1772433243228,3.93862355,83.47,83.434,10.7876]
[1772433243617,25.57998481,83.499,83.44,3.93862355]
[1772433243826,25.57998481,83.489,83.439,14.81998832]
[1772433244022,3.93862355,83.49,83.45,3.93862355]
[1772433244425,3.93862355,83.5,83.46,3.93862355]
[1772433244820,3.93862355,83.5,83.45,18.75861187]
[1772433245028,3.93862355,83.5,83.453,14.81998832]
[1772433245222,3.93862355,83.5,83.452,14.81998832]
[1772433245425,25.57998481,83.501,83.461,14.81998832]
[1772433245627,25.57998481,83.501,83.46,3.93862355]
[1772433245628,3.93862355,83.5,83.46,3.93862355]
[1772433246827,3.93862355,83.5,83.462,10.784]
[1772433247026,3.93862355,83.49,83.453,14.81998832]
[1772433247226,3.93862355,83.49,83.452,14.81998832]
[1772433247628,3.93862355,83.49,83.453,14.81998832]
[1772433247829,3.93862355,83.49,83.454,10.7851]
[1772433248824,29.51243545,83.5,83.462,10.784]
[1772433249330,3.93862355,83.49,83.462,10.784]
[1772433254233,25.5738119,83.5,83.462,10.784]
[1772433255132,29.40468318,83.51,83.469,10.783]
[1772433255830,29.40468318,83.51,83.453,14.81998832]
[1772433255831,3.93862355,83.51,83.475,10.7823]
[1772433256035,59.0,83.512,83.48,3.93862355]
[1772433256232,3.93862355,83.52,83.48,3.93862355]
[1772433256932,3.93862355,83.52,83.483,10.7812]
[1772433259336,3.93862355,83.53,83.491,10.7803]
[1772433259530,3.93862355,83.52,83.491,10.7803]
[1772433261835,3.93862355,83.52,83.47,14.81998832]
[1772433261836,3.93862355,83.51,83.47,3.93862355]
[1772433262030,25.60299644,83.52,83.48,3.93862355]
[1772433262031,29.54161999,83.52,83.48,3.93862355]
[1772433262438,3.93862355,83.52,83.48,3.93862355]
[1772433263834,3.93862355,83.52,83.488,10.7806]
[1772433264936,3.93862355,83.53,83.488,10.7806]
[1772433265740,25.51098462,83.53,83.488,10.7806]
[1772433265938,3.93862355,83.52,83.488,10.7806]
[1772433267028,29.44960817,83.53,83.488,10.7806]
[1772433270241,29.44960817,83.53,83.496,10.7796]
[1772433271238,29.44960817,83.53,83.487,10.7807]
[1772433272037,3.93862355,83.52,83.487,10.7807]
[1772433273046,29.44960817,83.53,83.487,10.7807]
[1772433275046,25.51098462,83.53,83.487,10.7807]
[1772433275340,29.35287551,83.52,83.479,10.7818]
[1772433275539,3.93862355,83.51,83.47,3.93862355]
[1772433276143,29.35287551,83.52,83.48,3.93862355]
[1772433276640,3.93862355,83.53,83.49,3.93862355]
[1772433277344,25.46179974,83.532,83.49,3.93862355]
[1772433277739,3.93862355,83.53,83.495,10.7797]
[1772433277944,29.71617727,83.53,83.495,10.7797]
[1772433279250,25.77755372,83.53,83.495,10.7797]
[1772433279450,29.71617727,83.53,83.495,10.7797]
[1772433282553,29.74115394,83.52,83.487,10.7808]
[1772433282753,29.74115394,83.52,83.48,3.93862355]
[1772433283852,3.93862355,83.51,83.474,10.7825]
[1772433284252,29.74115394,83.52,83.483,10.7813]
[1772433285553,29.74115394,83.52,83.48,3.93862355]
[1772433285753,29.74115394,83.52,83.474,10.7825]
[1772433287245,25.8878084,83.509,83.469,14.81998832]
[1772433287446,29.82643195,83.5,83.466,10.7835]
[1772433289555,25.8878084,83.5,83.466,10.7835]
[1772433290056,29.82643195,83.5,83.466,10.7835]
[1772433290958,30.09437085,83.49,83.458,14.81998832]
[1772433291153,30.09437085,83.49,83.457,10.7847]
[1772433291355,3.93862355,83.5,83.46,3.93862355]
[1772433291558,3.93862355,83.51,83.472,14.81998832]
[1772433291752,59.0,83.525,83.477,14.81998832]
[1772433291959,26.43222775,83.509,83.47,10.783]
[1772433292256,3.93862355,83.5,83.47,10.783]
[1772433294450,3.93443861,83.5,83.47,10.783]
[1772433296060,26.43222775,83.509,83.47,10.783]
[1772433298151,3.93443861,83.5,83.47,10.783]
[1772433301264,26.43222775,83.509,83.47,10.783]
[1772433302763,26.43222775,83.509,83.478,10.7819]
[1772433302962,26.43222775,83.509,83.47,14.81998832]
[1772433303766,26.43222775,83.509,83.471,10.7828]
[1772433306173,26.43222775,83.509,83.471,25.60278832]
[1772433306770,26.43222775,83.509,83.471,10.7828]
[1772433308463,26.43222775,83.509,83.471,25.60278832]
[1772433309372,26.43222775,83.509,83.478,10.782]
[1772433309769,3.93443861,83.52,83.481,10.7816]
[1772433310169,30.33141928,83.52,83.481,10.7816]
[1772433310869,30.33141928,83.52,83.48,3.93443861]
[1772433311067,30.33141928,83.52,83.481,14.81998832]
[1772433311773,30.33141928,83.52,83.481,10.7815]
[1772433313369,3.93443861,83.5,83.475,14.91898263]
[1772433313571,18.96034336,83.499,83.451,12.9822405]
[1772433313971,18.96034336,83.499,83.454,12.92925741]
[1772433314165,22.56726462,83.52,83.471,12.92925741]
[1772433314579,59.0,83.544,83.464,10.7838]
[1772433314580,16.40739848,83.509,83.464,10.7838]
[1772433314771,20.34183709,83.5,83.458,12.81984178]
[1772433315174,16.40739848,83.489,83.445,12.82080442]
[1772433315374,16.40739848,83.479,83.445,12.82080442]
[1772433315775,16.40739848,83.479,83.446,10.786]
[1772433317076,3.93443861,83.49,83.454,16.96884449]
[1772433318182,10.93133957,83.541,83.442,16.96884449]
[1772433318381,3.93443861,83.48,83.442,16.96884449]
[1772433318883,3.93443861,83.47,83.431,22.13627699]
[1772433319076,59.0,83.54,83.43,16.96884449]
[1772433319077,3.93443861,83.46,83.43,16.96884449]
[1772433319476,16.73573809,83.469,83.43,16.96884449]
[1772433320973,3.93443861,83.46,83.43,16.96884449]
[1772433323084,16.73573809,83.469,83.42,3.93443861]
[1772433323085,16.73573809,83.469,83.432,16.96884449]
[1772433324080,16.73573809,83.496,83.417,22.13627699]
[1772433324385,16.73573809,83.479,83.441,16.96884449]
[1772433324579,3.93443861,83.49,83.45,3.93443861]
[1772433324887,16.73573809,83.491,83.451,16.96884449]
[1772433325087,3.93443861,83.49,83.451,16.96884449]
[1772433325385,3.93443861,83.48,83.423,16.96884449]
[1772433325683,16.73573809,83.469,83.409,16.96884449]
[1772433325884,16.73573809,83.452,83.41,3.93443861]
[1772433326086,16.73573809,83.452,83.409,16.96884449]
[1772433326087,16.73573809,83.452,83.42,3.93443861]
[1772433326387,20.6701767,83.45,83.415,10.7901]
[1772433328081,16.73573809,83.439,83.384,16.96884449]
[1772433328283,16.73573809,83.439,83.338,21.6001]
[1772433328284,16.73573809,83.439,83.39,20.9032831]
[1772433328987,3.93443861,83.43,83.39,20.9032831]
[1772433329392,16.73573809,83.439,83.4,3.93443861]
[1772433329997,16.73573809,83.439,83.393,10.7929]
[1772433330895,20.6701767,83.43,83.39,20.9032831]
[1772433333490,20.6701767,83.43,83.391,10.7932]
[1772433333686,20.6701767,83.44,83.392,16.96884449]
[1772433333895,20.6701767,83.44,83.4,3.93443861]
[1772433334694,20.6701767,83.44,83.401,10.7918]
[1772433335796,16.73573809,83.44,83.408,10.791]
[1772433340602,3.93443861,83.42,83.338,22.21711471]
[1772433340796,3.93443861,83.38,83.348,44.68476404]
[1772433340991,3.93443861,83.38,83.33,3.93443861]
[1772433341197,3.93443861,83.38,83.331,44.68476404]
[1772433341396,3.93443861,83.37,83.331,44.68476404]
[1772433341594,3.93443861,83.35,83.316,44.68476404]
[1772433341902,3.93443861,83.36,83.32,47.68536775]
[1772433342109,3.93443861,83.37,83.32,47.68536775]
[1772433342405,3.93443861,83.36,83.32,43.75092914]
[1772433345002,10.7937,83.388,83.32,47.68536775]
[1772433345205,3.93443861,83.37,83.32,47.68536775]
[1772433345404,3.93443861,83.36,83.32,47.68536775]
[1772433345708,3.93443861,83.36,83.31,47.68859497]
[1772433346204,3.93443861,83.36,83.32,47.68900616]
[1772433347603,3.93443861,83.37,83.33,3.93443861]
[1772433348004,3.93443861,83.37,83.32,47.68900616]
[1772433348801,3.93443861,83.37,83.32,43.75456755]
[1772433349107,3.93443861,83.37,83.32,47.68900616]
[1772433350608,3.93443861,83.37,83.322,43.88805752]
[1772433350816,3.93443861,83.37,83.33,3.93443861]
[1772433351914,3.93443861,83.37,83.322,43.88805752]
[1772433352110,3.93443861,83.37,83.324,43.69245618]
[1772433352312,3.93443861,83.38,83.331,43.69245618]
[1772433352912,3.93443861,83.37,83.331,43.69245618]
[1772433353309,3.93443861,83.38,83.331,43.69245618]
[1772433353509,3.93443861,83.37,83.331,43.69245618]
[1772433354615,3.94728367,83.38,83.331,43.69245618]
[1772433355312,59.0,83.397,83.269,21.6179]
[1772433355313,3.94728367,83.36,83.321,43.48312582]
[1772433356014,3.94728367,83.35,83.321,43.48312582]
[1772433356210,3.94728367,83.36,83.321,43.48312582]
[1772433358019,3.94728367,83.38,83.34,47.42619704]
[1772433358213,3.94728367,83.38,83.341,10.7997]
[1772433359414,3.94728367,83.39,83.341,54.27473221]
[1772433359617,3.94728367,83.39,83.35,48.02115421]
[1772433359912,3.94728367,83.39,83.349,10.7986]
[1772433359913,3.94728367,83.39,83.335,44.07387054]
[1772433360120,3.94728367,83.39,83.341,44.07387054]
[1772433360417,456.22262308,83.408,83.351,44.07387054]
[1772433360418,3.94728367,83.4,83.351,44.07387054]
[1772433360719,456.22262308,83.408,83.37,3.94728367]
[1772433360924,456.22262308,83.408,83.37,48.02004198]
[1772433361814,22.52675454,83.414,83.39,3.94728367]
[1772433362118,8.17509872,83.414,83.39,3.94728367]
[1772433362518,8.17509872,83.414,83.38,48.10012866]
[1772433363014,3.94728367,83.41,83.367,44.15210689]
[1772433363211,3.94728367,83.41,83.37,3.94728367]
[1772433363415,8.17509872,83.414,83.38,3.94728367]
[1772433364217,8.17509872,83.414,83.38,47.69850176]
[1772433369320,3.94728367,83.43,83.38,47.69850176]
[1772433369719,3.94728367,83.42,83.38,43.75121809]
[1772433370325,3.94728367,83.42,83.38,47.69850176]
[1772433371724,3.94728367,83.42,83.315,21.6061]
[1772433371725,3.94728367,83.41,83.364,44.12206499]
[1772433371923,3.94728367,83.41,83.315,21.6061]
[1772433371924,3.94728367,83.41,83.37,48.06934866]
[1772433373628,3.94728367,83.42,83.37,48.06934866]
[1772433376028,10.7899,83.417,83.37,48.06934866]
[1772433376225,59.0,83.435,83.374,44.01727871]
[1772433376430,3.94728367,83.43,83.381,44.01727871]
[1772433377230,3.94728367,83.43,83.39,3.94728367]
[1772433377931,3.94728367,83.43,83.383,44.04225761]
[1772433378122,3.94728367,83.4,83.351,44.04225761]
[1772433378323,3.94728367,83.38,83.34,3.94728367]
[1772433378523,3.94728367,83.38,83.338,44.04225761]
[1772433380327,3.94728367,83.38,83.341,43.97955844]